fUSD/lending_fUSD_20251122
["ID","MTS","AMOUNT","RATE_DAILY","PERIOD"]
[394627148,1763795462934,-500.0,0.00016986,2]
[394627149,1763795462944,-929.65,0.00016986,2]
[394627150,1763795462953,-500.0,0.00016986,2]
[394627151,1763795462963,-500.0,0.00016986,2]
[394627152,1763795462973,-500.0,0.00016986,2]
[394627153,1763795462983,-500.0,0.00016986,2]
[394627154,1763795462993,-454.63729111,0.00016986,2]
[394627155,1763795463003,-1055.61,0.00016986,2]
[394627156,1763795463012,-500.0,0.00016986,2]
[394627157,1763795463021,-949.05,0.00016986,2]
[394627158,1763795463031,-500.0,0.00016986,2]
[394627159,1763795463040,-652.47,0.00016986,2]
[394627160,1763795463049,-853.84,0.00016986,2]
[394627161,1763795463059,-500.0,0.00016986,2]
[394627162,1763795463069,-500.0,0.00016986,2]
[394627163,1763795463079,-500.0,0.00016986,2]
[394627164,1763795463089,-931.55,0.00016986,2]
[394627165,1763795463104,-1047.79,0.00016986,2]
[394627166,1763795463114,-690.99,0.00016986,2]
[394627167,1763795463124,-500.0,0.00016986,2]
[394627168,1763795463134,-500.0,0.00016986,2]
[394627169,1763795463147,-624.74675112,0.00016986,2]
[394627170,1763795463157,-621.83,0.00016986,2]
[394627171,1763795463169,-500.0,0.00016986,2]
[394627172,1763795463184,-415.8978007,0.00016986,2]
[394627173,1763795463193,-500.0,0.00016986,2]
[394627174,1763795463203,-500.0,0.00016986,2]
[394627175,1763795463214,-880.46,0.00016986,2]
[394627176,1763795463223,-500.0,0.00016986,2]
[394627177,1763795463233,-500.0,0.00016986,2]
[394627178,1763795463244,-619.75492399,0.00016986,2]
[394627179,1763795463253,-376.89733736,0.00016986,2]
[394627180,1763795463263,-500.0,0.00016986,2]
[394627181,1763795463274,-500.0,0.00016986,2]
[394627182,1763795463283,-500.0,0.00016986,2]
[394627183,1763795463293,-500.0,0.00016986,2]
[394627184,1763795463303,-500.0,0.00016986,2]
[394627185,1763795463313,-500.0,0.00016986,2]
[394627186,1763795463323,-500.0,0.00016986,2]
[394627187,1763795463334,-500.0,0.00016986,2]
[394627188,1763795463344,-500.0,0.00016986,2]
[394627189,1763795463355,-337.20741779,0.00016986,2]
[394627190,1763795463365,-922.69,0.00016986,2]
[394627191,1763795463375,-500.0,0.00016986,2]
[394627192,1763795463385,-500.0,0.00016986,2]
[394627193,1763795463395,-1154.65,0.00016986,2]
[394627194,1763795463405,-218.32882181,0.00016986,2]
[394627195,1763795463414,-359.3223753,0.00016986,2]
[394627196,1763795463424,-500.0,0.00016986,2]
[394627197,1763795463435,-500.0,0.00016986,2]
[394627198,1763795463444,-500.0,0.00016986,2]
[394627199,1763795463454,-928.41,0.00016986,2]
[394627200,1763795463464,-500.0,0.00016986,2]
[394627201,1763795463474,-500.0,0.00016986,2]
[394627202,1763795463483,-500.0,0.00016986,2]
[394627203,1763795463492,-753.82,0.00016986,2]
[394627204,1763795463502,-500.0,0.00016986,2]
[394627205,1763795463511,-500.0,0.00016986,2]
[394627206,1763795463520,-500.0,0.00016986,2]
[394627207,1763795463529,-500.0,0.00016986,2]
[394627208,1763795463539,-500.0,0.00016986,2]
[394627209,1763795463548,-678.17,0.00016986,2]
[394627210,1763795463557,-500.0,0.00016986,2]
[394627211,1763795463568,-500.0,0.00016986,2]
[394627212,1763795463577,-500.0,0.00016986,2]
[394627213,1763795463587,-500.0,0.00016986,2]
[394627214,1763795463596,-571.38,0.00016986,2]
[394627215,1763795463606,-1167.28,0.00016986,2]
[394627216,1763795463617,-505.88566589,0.00016986,2]
[394627217,1763795463626,-816.49,0.00016986,2]
[394627218,1763795463642,-609.46,0.00016986,2]
[394627219,1763795463651,-500.0,0.00016986,2]
[394627220,1763795463662,-1508.97,0.00016986,2]
[394627221,1763795463673,-500.0,0.00016986,2]
[394627222,1763795463683,-990.34,0.00016986,2]
[394627223,1763795463692,-545.88,0.00016986,2]
[394627224,1763795463701,-500.0,0.00016986,2]
[394627225,1763795463713,-500.0,0.00016986,2]
[394627226,1763795463723,-543.02,0.00016986,2]
[394627227,1763795463732,-646.95,0.00016986,2]
[394627228,1763795463742,-500.0,0.00016986,2]
[394627229,1763795463752,-500.0,0.00016986,2]
[394627230,1763795463761,-500.0,0.00016986,2]
[394627231,1763795463771,-505.03344124,0.00016986,2]
[394627232,1763795463781,-669.39,0.00016986,2]
[394627233,1763795463791,-500.0,0.00016986,2]
[394627234,1763795463800,-500.0,0.00016986,2]
[394627235,1763795463809,-796.52,0.00016986,2]
[394627236,1763795463819,-549.37,0.00016986,2]
[394627237,1763795463828,-991.62,0.00016986,2]
[394627238,1763795463837,-500.0,0.00016986,2]
[394627239,1763795463847,-633.17,0.00016986,2]
[394627240,1763795463856,-500.0,0.00016986,2]
[394627241,1763795463865,-500.0,0.00016986,2]
[394627242,1763795463875,-540.87490177,0.00016986,2]
[394627243,1763795463884,-751.7,0.00016986,2]
[394627244,1763795463893,-746.32,0.00016986,2]
[394627245,1763795463903,-1285.18,0.00016986,2]
[394627246,1763795463912,-500.0,0.00016986,2]
[394627247,1763795463921,-500.0,0.00016986,2]
[394627248,1763795463931,-500.0,0.00016986,2]
[394627249,1763795463940,-500.0,0.00016986,2]
[394627250,1763795463949,-663.91,0.00016986,2]
[394627251,1763795463958,-652.22,0.00016986,2]
[394627252,1763795463970,-1913.84,0.00016986,2]
[394627253,1763795463980,-500.0,0.00016986,2]
[394627254,1763795463990,-500.0,0.00016986,2]
[394627255,1763795463999,-500.0,0.00016986,2]
[394627256,1763795464009,-820.04,0.00016986,2]
[394627257,1763795464021,-779.07,0.00016986,2]
[394627258,1763795464030,-500.0,0.00016986,2]
[394627259,1763795464039,-710.26,0.00016986,2]
[394627260,1763795464049,-500.0,0.00016986,2]
[394627261,1763795464058,-517.32601492,0.00016986,2]
[394627262,1763795464068,-972.58,0.00016986,2]
[394627263,1763795464078,-500.0,0.00016986,2]
[394627264,1763795464087,-500.0,0.00016986,2]
[394627265,1763795464100,-500.0,0.00016986,2]
[394627266,1763795464110,-1150.96,0.00016986,2]
[394627267,1763795464119,-500.0,0.00016986,2]
[394627268,1763795464129,-500.0,0.00016986,2]
[394627269,1763795464139,-500.0,0.00016986,2]
[394627270,1763795464149,-500.0,0.00016986,2]
[394627271,1763795464159,-500.0,0.00016986,2]
[394627272,1763795464168,-500.0,0.00016986,2]
[394627273,1763795464178,-500.0,0.00016986,2]
[394627274,1763795464188,-835.25,0.00016986,2]
[394627275,1763795464198,-783.43,0.00016986,2]
[394627276,1763795464207,-500.0,0.00016986,2]
[394627277,1763795464221,-519.54466988,0.00016986,2]
[394627278,1763795464230,-500.0,0.00016986,2]
[394627279,1763795464239,-555.01,0.00016986,2]
[394627280,1763795464248,-500.0,0.00016986,2]
[394627281,1763795464257,-500.0,0.00016986,2]
[394627282,1763795464267,-500.0,0.00016986,2]
[394627283,1763795464277,-567.49,0.00016986,2]
[394627284,1763795464286,-500.0,0.00016986,2]
[394627285,1763795464296,-500.0,0.00016986,2]
[394627286,1763795464306,-311.85180012,0.00016986,2]
[394627287,1763795464316,-500.0,0.00016986,2]
[394627288,1763795464325,-862.12,0.00016986,2]
[394627289,1763795464335,-712.13,0.00016986,2]
[394627290,1763795464345,-882.47,0.00016986,2]
[394627291,1763795464355,-500.0,0.00016986,2]
[394627292,1763795464364,-500.0,0.00016986,2]
[394627293,1763795464373,-500.0,0.00016986,2]
[394627294,1763795464383,-930.74,0.00016986,2]
[394627295,1763795464393,-500.0,0.00016986,2]
[394627296,1763795464402,-500.0,0.00016986,2]
[394627297,1763795464412,-500.0,0.00016986,2]
[394627298,1763795464421,-986.57,0.00016986,2]
[394627299,1763795464430,-500.0,0.00016986,2]
[394627300,1763795464439,-684.09,0.00016986,2]
[394627301,1763795464448,-622.4,0.00016986,2]
[394627302,1763795464457,-500.0,0.00016986,2]
[394627303,1763795464468,-500.0,0.00016986,2]
[394627304,1763795464477,-636.78,0.00016986,2]
[394627305,1763795464486,-903.87,0.00016986,2]
[394627306,1763795464495,-552.67,0.00016986,2]
[394627307,1763795464505,-650.37,0.00016986,2]
[394627308,1763795464514,-500.0,0.00016986,2]
[394627309,1763795464523,-500.0,0.00016986,2]
[394627310,1763795464533,-272.99493125,0.00016986,2]
[394627311,1763795464543,-949.19,0.00016986,2]
[394627312,1763795464552,-500.0,0.00016986,2]
[394627313,1763795464561,-506.35895688,0.00016986,2]
[394627314,1763795464570,-608.04698498,0.00016986,2]
[394627315,1763795464579,-511.73,0.00016986,2]
[394627316,1763795464588,-500.0,0.00016986,2]
[394627317,1763795464597,-1022.1,0.00016986,2]
[394627318,1763795464607,-500.0,0.00016986,2]
[394627319,1763795464616,-596.89,0.00016986,2]
[394627320,1763795464625,-587.08553846,0.00016986,2]
[394627321,1763795464635,-500.0,0.00016986,2]
[394627322,1763795464644,-840.6,0.00016986,2]
[394627323,1763795464654,-906.66,0.00016986,2]
[394627324,1763795464663,-500.0,0.00016986,2]
[394627325,1763795464735,-184.33069346,0.00016986,2]
[394627326,1763795464744,-500.0,0.00016986,2]
[394627327,1763795464754,-683.84,0.00016986,2]
[394627328,1763795464762,-802.44,0.00016986,2]
[394627329,1763795464772,-514.57727994,0.00016986,2]
[394627330,1763795464781,-500.0,0.00016986,2]
[394627331,1763795464790,-500.0,0.00016986,2]
[394627332,1763795464800,-500.0,0.00016986,2]
[394627333,1763795464809,-500.0,0.00016986,2]
[394627334,1763795464818,-500.0,0.00016986,2]
[394627335,1763795464827,-500.0,0.00016986,2]
[394627336,1763795464836,-1663.26,0.00016986,2]
[394627337,1763795464846,-500.0,0.00016986,2]
[394627338,1763795464855,-500.0,0.00016986,2]
[394627339,1763795464864,-590.17,0.00016986,2]
[394627340,1763795464873,-500.0,0.00016986,2]
[394627341,1763795464883,-500.0,0.00016986,2]
[394627342,1763795464892,-500.0,0.00016986,2]
[394627343,1763795464902,-710.85,0.00016986,2]
[394627344,1763795464921,-642.27,0.00016986,2]
[394627345,1763795464932,-878.89,0.00016986,2]
[394627346,1763795464941,-500.0,0.00016986,2]
[394627347,1763795464950,-500.0,0.00016986,2]
[394627348,1763795464959,-500.0,0.00016986,2]
[394627349,1763795464969,-554.72,0.00016986,2]
[394627350,1763795464978,-500.0,0.00016986,2]
[394627351,1763795464987,-500.0,0.00016986,2]
[394627352,1763795464997,-500.0,0.00016986,2]
[394627353,1763795465007,-571.32,0.00016986,2]
[394627354,1763795465016,-664.81,0.00016986,2]
[394627355,1763795465025,-500.0,0.00016986,2]
[394627356,1763795465035,-500.0,0.00016986,2]
[394627357,1763795465044,-500.0,0.00016986,2]
[394627358,1763795465055,-500.0,0.00016986,2]
[394627359,1763795465065,-500.0,0.00016986,2]
[394627360,1763795465075,-571.23,0.00016986,2]
[394627361,1763795465086,-1071.02,0.00016986,2]
[394627362,1763795465103,-907.63,0.00016986,2]
[394627363,1763795465114,-500.0,0.00016986,2]
[394627364,1763795465125,-500.0,0.00016986,2]
[394627365,1763795465135,-500.0,0.00016986,2]
[394627366,1763795465145,-500.0,0.00016986,2]
[394627367,1763795465157,-500.0,0.00016986,2]
[394627368,1763795465166,-1282.27,0.00016986,2]
[394627369,1763795465176,-315.13269416,0.00016986,2]
[394627370,1763795465186,-315.55739572,0.00016986,2]
[394627371,1763795465195,-510.31,0.00016986,2]
[394627372,1763795465205,-500.0,0.00016986,2]
[394627373,1763795465214,-500.0,0.00016986,2]
[394627374,1763795465224,-551.38,0.00016986,2]
[394627375,1763795465233,-500.0,0.00016986,2]
[394627376,1763795465243,-500.0,0.00016986,2]
[394627377,1763795465253,-604.79828723,0.00016986,2]
[394627378,1763795465262,-500.0,0.00016986,2]
[394627379,1763795465272,-190.90962559,0.00016986,2]
[394627380,1763795465282,-500.0,0.00016986,2]
[394627381,1763795465291,-500.0,0.00016986,2]
[394627382,1763795465301,-4611.01,0.00016986,2]
[394627383,1763795465310,-500.0,0.00016986,2]
[394627384,1763795465321,-559.84,0.00016986,2]
[394627385,1763795465331,-500.0,0.00016986,2]
[394627386,1763795465341,-500.0,0.00016986,2]
[394627387,1763795465351,-731.85,0.00016986,2]
[394627388,1763795465361,-500.0,0.00016986,2]
[394627389,1763795465371,-500.0,0.00016986,2]
[394627390,1763795465380,-921.22,0.00016986,2]
[394627391,1763795465391,-500.0,0.00016986,2]
[394627392,1763795465402,-500.0,0.00016986,2]
[394627393,1763795465412,-538.25,0.00016986,2]
[394627394,1763795465422,-1314.18,0.00016986,2]
[394627395,1763795465432,-564.41,0.00016986,2]
[394627396,1763795465444,-500.0,0.00016986,2]
[394627397,1763795465453,-745.5,0.00016986,2]
[394627398,1763795465464,-1084.77,0.00016986,2]
[394627399,1763795465473,-500.0,0.00016986,2]
[394627400,1763795465483,-500.0,0.00016986,2]
[394627401,1763795465492,-868.15,0.00016986,2]
[394627402,1763795465501,-500.0,0.00016986,2]
[394627403,1763795465511,-500.0,0.00016986,2]
[394627404,1763795465522,-500.0,0.00016986,2]
[394627405,1763795465532,-647.03033136,0.00016986,2]
[394627406,1763795465541,-500.0,0.00016986,2]
[394627407,1763795465551,-1394.24,0.00016986,2]
[394627408,1763795465561,-833.98,0.00016986,2]
[394627409,1763795465571,-1003.9,0.00016986,2]
[394627410,1763795465583,-968.93,0.00016986,2]
[394627411,1763795465593,-500.0,0.00016986,2]
[394627412,1763795465603,-500.0,0.00016986,2]
[394627413,1763795465613,-500.0,0.00016986,2]
[394627414,1763795465624,-500.0,0.00016986,2]
[394627415,1763795465635,-500.0,0.00016986,2]
[394627416,1763795465644,-1270.78,0.00016986,2]
[394627417,1763795465654,-591.78,0.00016986,2]
[394627418,1763795465665,-500.0,0.00016986,2]
[394627419,1763795465675,-1323.25,0.00016986,2]
[394627420,1763795465684,-500.0,0.00016986,2]
[394627421,1763795465693,-500.0,0.00016986,2]
[394627422,1763795465702,-500.0,0.00016986,2]
[394627423,1763795465711,-500.0,0.00016986,2]
[394627424,1763795465721,-960.48,0.00016986,2]
[394627425,1763795465730,-500.0,0.00016986,2]
[394627426,1763795465739,-1270.58,0.00016986,2]
[394627427,1763795465748,-1756.44,0.00016986,2]
[394627428,1763795465757,-500.0,0.00016986,2]
[394627429,1763795465766,-5897.28,0.00016986,2]
[394627430,1763795465781,-300.0,0.00016986,2]
[394627431,1763795465790,-500.0,0.00016986,2]
[394627432,1763795465800,-673.29,0.00016986,2]
[394627433,1763795465809,-633.40203517,0.00016986,2]
[394627434,1763795465819,-642.99,0.00016986,2]
[394627435,1763795465829,-500.0,0.00016986,2]
[394627436,1763795465839,-473.36324892,0.00016986,2]
[394627437,1763795465849,-500.0,0.00016986,2]
[394627438,1763795465858,-793.06,0.00016986,2]
[394627439,1763795465867,-539.56,0.00016986,2]
[394627440,1763795465877,-500.0,0.00016986,2]
[394627441,1763795465886,-500.0,0.00016986,2]
[394627442,1763795465895,-500.0,0.00016986,2]
[394627443,1763795465905,-500.0,0.00016986,2]
[394627444,1763795465914,-500.0,0.00016986,2]
[394627445,1763795465923,-500.0,0.00016986,2]
[394627446,1763795465932,-500.0,0.00016986,2]
[394627447,1763795465942,-1013.52,0.00016986,2]
[394627448,1763795465951,-421.07779344,0.00016986,2]
[394627449,1763795465961,-500.0,0.00016986,2]
[394627450,1763795465971,-500.0,0.00016986,2]
[394627451,1763795465980,-732.25,0.00016986,2]
[394627452,1763795465989,-500.0,0.00016986,2]
[394627453,1763795465997,-205.78740145,0.00016986,2]
[394627454,1763795466006,-500.0,0.00016986,2]
[394627455,1763795466016,-3543.04,0.00016986,2]
[394627456,1763795466026,-500.0,0.00016986,2]
[394627457,1763795466034,-500.0,0.00016986,2]
[394627458,1763795466043,-500.0,0.00016986,2]
[394627459,1763795466052,-1235.15,0.00016986,2]
[394627460,1763795466061,-1277.22,0.00016986,2]
[394627461,1763795466070,-500.0,0.00016986,2]
[394627462,1763795466079,-500.0,0.00016986,2]
[394627463,1763795466088,-500.0,0.00016986,2]
[394627464,1763795466099,-500.0,0.00016986,2]
[394627465,1763795466108,-500.0,0.00016986,2]
[394627466,1763795466118,-500.0,0.00016986,2]
[394627467,1763795466127,-500.0,0.00016986,2]
[394627468,1763795466137,-500.0,0.00016986,2]
[394627469,1763795466145,-500.0,0.00016986,2]
[394627470,1763795466153,-500.0,0.00016986,2]
[394627471,1763795466163,-1044.2,0.00016986,2]
[394627472,1763795466174,-740.95,0.00016986,2]
[394627473,1763795466183,-500.0,0.00016986,2]
[394627474,1763795466192,-500.0,0.00016986,2]
[394627475,1763795466202,-804.88,0.00016986,2]
[394627476,1763795466211,-500.0,0.00016986,2]
[394627477,1763795466220,-698.82,0.00016986,2]
[394627478,1763795466229,-726.81,0.00016986,2]
[394627479,1763795466239,-500.0,0.00016986,2]
[394627480,1763795466247,-500.0,0.00016986,2]
[394627481,1763795466257,-500.0,0.00016986,2]
[394627482,1763795466266,-597.4,0.00016986,2]
[394627483,1763795466276,-227.28300079,0.00016986,2]
[394627484,1763795466286,-500.0,0.00016986,2]
[394627485,1763795466296,-500.0,0.00016986,2]
[394627486,1763795466305,-500.0,0.00016986,2]
[394627487,1763795466315,-500.0,0.00016986,2]
[394627488,1763795466324,-691.58,0.00016986,2]
[394627489,1763795466335,-564.65,0.00016986,2]
[394627490,1763795466345,-500.0,0.00016986,2]
[394627491,1763795466355,-433.39156672,0.00016986,2]
[394627492,1763795466364,-500.0,0.00016986,2]
[394627493,1763795466374,-500.0,0.00016986,2]
[394627494,1763795466384,-500.0,0.00016986,2]
[394627495,1763795466394,-500.0,0.00016986,2]
[394627496,1763795466404,-500.0,0.00016986,2]
[394627497,1763795466413,-500.0,0.00016986,2]
[394627498,1763795466422,-655.79,0.00016986,2]
[394627499,1763795466432,-500.0,0.00016986,2]
[394627500,1763795466442,-500.0,0.00016986,2]
[394627501,1763795466452,-782.5,0.00016986,2]
[394627502,1763795466462,-500.0,0.00016986,2]
[394627503,1763795466472,-647.09,0.00016986,2]
[394627504,1763795466481,-500.0,0.00016986,2]
[394627505,1763795466490,-547.59804671,0.00016986,2]
[394627506,1763795466500,-904.27,0.00016986,2]
[394627507,1763795466510,-500.0,0.00016986,2]
[394627508,1763795466521,-1622.6,0.00016986,2]
[394627509,1763795466531,-500.0,0.00016986,2]
[394627510,1763795466541,-381.49048947,0.00016986,2]
[394627511,1763795466551,-500.0,0.00016986,2]
[394627512,1763795466560,-733.12,0.00016986,2]
[394627513,1763795466570,-787.46,0.00016986,2]
[394627514,1763795466580,-500.0,0.00016986,2]
[394627515,1763795466595,-500.0,0.00016986,2]
[394627516,1763795466606,-3465.48,0.00016986,2]
[394627517,1763795466616,-500.0,0.00016986,2]
[394627518,1763795466627,-500.0,0.00016986,2]
[394627519,1763795466637,-500.0,0.00016986,2]
[394627520,1763795466646,-500.0,0.00016986,2]
[394627521,1763795466656,-500.0,0.00016986,2]
[394627522,1763795466666,-1361.43,0.00016986,2]
[394627523,1763795466677,-500.0,0.00016986,2]
[394627524,1763795466688,-500.0,0.00016986,2]
[394627525,1763795466698,-517.54,0.00016986,2]
[394627526,1763795466707,-500.0,0.00016986,2]
[394627527,1763795466716,-500.0,0.00016986,2]
[394627528,1763795466726,-500.0,0.00016986,2]
[394627529,1763795466737,-500.0,0.00016986,2]
[394627530,1763795466748,-2776.22,0.00016986,2]
[394627531,1763795466758,-500.0,0.00016986,2]
[394627532,1763795466767,-953.39,0.00016986,2]
[394627533,1763795466776,-500.0,0.00016986,2]
[394627534,1763795466785,-500.0,0.00016986,2]
[394627535,1763795466794,-679.39,0.00016986,2]
[394627536,1763795466803,-594.06071205,0.00016986,2]
[394627537,1763795466812,-500.0,0.00016986,2]
[394627538,1763795466821,-1700.59,0.00016986,2]
[394627539,1763795466831,-500.0,0.00016986,2]
[394627540,1763795466840,-500.0,0.00016986,2]
[394627541,1763795466849,-500.0,0.00016986,2]
[394627542,1763795466858,-1365.73,0.00016986,2]
[394627543,1763795466868,-1141.67,0.00016986,2]
[394627544,1763795466877,-1067.76,0.00016986,2]
[394627545,1763795466886,-500.0,0.00016986,2]
[394627546,1763795466895,-417.96480882,0.00016986,2]
[394627547,1763795466904,-500.0,0.00016986,2]
[394627548,1763795466913,-500.0,0.00016986,2]
[394627549,1763795466923,-505.09,0.00016986,2]
[394627550,1763795466932,-500.0,0.00016986,2]
[394627551,1763795466941,-597.03,0.00016986,2]
[394627552,1763795466950,-500.0,0.00016986,2]
[394627553,1763795466959,-235.74574495,0.00016986,2]
[394627554,1763795466969,-500.0,0.00016986,2]
[394627555,1763795466978,-500.0,0.00016986,2]
[394627556,1763795466987,-500.0,0.00016986,2]
[394627557,1763795466997,-500.0,0.00016986,2]
[394627558,1763795467006,-500.0,0.00016986,2]
[394627559,1763795467017,-1561.68,0.00016986,2]
[394627560,1763795467027,-2836.92,0.00016986,2]
[394627561,1763795467037,-500.0,0.00016986,2]
[394627562,1763795467046,-549.36,0.00016986,2]
[394627563,1763795467056,-500.0,0.00016986,2]
[394627564,1763795467065,-500.0,0.00016986,2]
[394627565,1763795467075,-500.0,0.00016986,2]
[394627566,1763795467084,-500.0,0.00016986,2]
[394627567,1763795467096,-500.0,0.00016986,2]
[394627568,1763795467106,-500.0,0.00016986,2]
[394627569,1763795467115,-500.0,0.00016986,2]
[394627570,1763795467124,-500.0,0.00016986,2]
[394627571,1763795467135,-500.0,0.00016986,2]
[394627572,1763795467145,-1018.18,0.00016986,2]
[394627573,1763795467155,-759.31,0.00016986,2]
[394627574,1763795467165,-1213.88,0.00016986,2]
[394627575,1763795467176,-2177.24,0.00016986,2]
[394627576,1763795467185,-910.36,0.00016986,2]
[394627577,1763795467195,-672.23,0.00016986,2]
[394627578,1763795467205,-500.0,0.00016986,2]
[394627579,1763795467215,-500.0,0.00016986,2]
[394627580,1763795467226,-500.0,0.00016986,2]
[394627581,1763795467235,-500.0,0.00016986,2]
[394627582,1763795467245,-500.0,0.00016986,2]
[394627583,1763795467255,-1090.15,0.00016986,2]
[394627584,1763795467264,-1094.76,0.00016986,2]
[394627585,1763795467274,-872.6,0.00016986,2]
[394627586,1763795467284,-500.0,0.00016986,2]
[394627587,1763795467293,-500.0,0.00016986,2]
[394627588,1763795467303,-500.0,0.00016986,2]
[394627589,1763795467313,-514.75719222,0.00016986,2]
[394627590,1763795467323,-500.0,0.00016986,2]
[394627591,1763795467333,-584.60663954,0.00016986,2]
[394627592,1763795467342,-500.0,0.00016986,2]
[394627593,1763795467352,-500.0,0.00016986,2]
[394627594,1763795467362,-500.0,0.00016986,2]
[394627595,1763795467373,-500.0,0.00016986,2]
[394627596,1763795467382,-8935.96,0.00016986,2]
[394627597,1763795467392,-1399.76,0.00016986,2]
[394627598,1763795467401,-2311.26,0.00016986,2]
[394627599,1763795467411,-626.87,0.00016986,2]
[394627600,1763795467421,-500.0,0.00016986,2]
[394627601,1763795467430,-773.67,0.00016986,2]
[394627602,1763795467440,-902.42,0.00016986,2]
[394627603,1763795467449,-500.0,0.00016986,2]
[394627604,1763795467459,-500.0,0.00016986,2]
[394627605,1763795467468,-498.76882327,0.00016986,2]
[394627606,1763795467478,-500.0,0.00016986,2]
[394627607,1763795467488,-500.0,0.00016986,2]
[394627608,1763795467497,-531.43,0.00016986,2]
[394627609,1763795467507,-500.0,0.00016986,2]
[394627610,1763795467515,-2809.48,0.00016986,2]
[394627611,1763795467524,-500.0,0.00016986,2]
[394627612,1763795467534,-873.93,0.00016986,2]
[394627613,1763795467543,-819.4,0.00016986,2]
[394627614,1763795467552,-787.03,0.00016986,2]
[394627615,1763795467561,-300.0,0.00016987,2]
[394627616,1763795467570,-500.0,0.00016998,2]
[394627617,1763795467578,-290764.2674196,0.00016999,2]
[394627618,1763795467587,-14781.760483,0.00016999,2]
[394627619,1763795467596,-500.0,0.00016999,2]
[394627620,1763795467605,-75792.6553839,0.00016999,2]
[394627621,1763795467615,-1000.0,0.00017,2]
[394627622,1763795467625,-2000.0,0.00017,2]
[394627623,1763795467634,-1010.0,0.00017,2]
[394627624,1763795467643,-152.83400044,0.00017006,2]
[394627625,1763795467652,-150.0,0.00017006,2]
[394627626,1763795467661,-500.0,0.00017006,2]
[394627627,1763795467670,-151.7667529,0.00017006,2]
[394627628,1763795467679,-500.0,0.00017006,2]
[394627629,1763795467688,-150.0,0.00017006,2]
[394627630,1763795467697,-228.59241107,0.00017006,2]
[394627631,1763795467707,-500.0,0.00017006,2]
[394627632,1763795467715,-150.0,0.00017006,2]
[394627633,1763795467724,-500.0,0.00017006,2]
[394627634,1763795467733,-150.0,0.00017006,2]
[394627635,1763795467742,-500.0,0.00017006,2]
[394627636,1763795467751,-150.0,0.00017006,2]
[394627637,1763795467760,-554.06621588,0.00017006,2]
[394627638,1763795467769,-500.0,0.00017006,2]
[394627639,1763795467778,-520.0,0.00017006,2]
[394627640,1763795467787,-618.0,0.00017006,2]
[394627641,1763795467797,-500.0,0.00017006,2]
[394627642,1763795467807,-500.0,0.00017006,2]
[394627643,1763795467816,-500.0,0.00017006,2]
[394627644,1763795467827,-150.0,0.00017006,2]
[394627645,1763795467838,-150.0,0.00017006,2]
[394627646,1763795467848,-500.0,0.00017006,2]
[394627647,1763795467858,-500.0,0.00017006,2]